[Event "Frauenbundesliga 2021-22"]
[Site "Germany"]
[Date "2022.05.26"]
[Round "3.20"]
[White "Kashlinskaya, Alina"]
[Black "Padmini, Rout"]
[Result "0-1"]
[ECO "E91"]
[WhiteElo "2498"]
[BlackElo "2348"]
[Annotator "TA"]
[PlyCount "158"]
[EventDate "2021.11.26"]
[EventType "team-tourn"]
[EventCountry "GER"]
[SourceTitle "playchess.com"]
[Source "ChessBase"]
[SourceQuality "1"]
[WhiteTeam "Schwaebisch Hall"]
[BlackTeam "Hamburger SK"]
[TimeControl "40/5400+30:1800+30"]

{[%evp 12,158,45,45,39,39,63,43,33,36,52,37,60,35,54,61,54,50,71,62,64,41,57,16,21,6,4,4,4,4,4,3,3,3,3,3,3,3,6,15,8,0,0,0,0,0,0,0,0,0,0,0,0,0,0,-23,-23,-18,-17,-19,-9,-36,-51,-51,-31,-64,-57,-67,-16,-12,-12,-18,0,-28,-28,-28,-28,-28,-28,-46,-30,-33,-34,-29,0,0,0,-43,-29,-37,-35,-67,-77,-80,-80,-155,-150,-236,-221,-275,-275,-275,-269,-257,-245,-245,-213,-274,-191,-235,-245,-575,-511,-624,-623,-599,-581,-651,-662,-1365,-1365,-1416,-1616,-1199,-2070,-1699,-1578,-12835,-12806,-3222,-2432,-29968,-29967,-29983,-29984,-29979,-29980,-29983,-29984,-29985,-29985,-29974,-6456,-29991,-29992,-29997,-29987,-29987,-29988]} 1. d4 {[%emt 0:00:03]} Nf6 {[%emt 0:00:10]} 2. c4 {[%emt 0:00:08]} g6 {[%emt 0:00:19]} 3. Nc3 {[%emt 0:00:18]} Bg7 {[%emt 0:00:27]} 4. e4 {[%emt 0:00:16]} d6 {[%emt 0:00:49]} 5. Be2 {[%emt 0:01:23]} O-O {[%emt 0:02:03]} 6. Be3 {[%emt 0:00:16]} Na6 {[%emt 0:01:43]} 7. Nf3 {[%emt 0:07:48]} c5 {[%emt 0:05:11] E91: King's Indian: Classical: 6 Be2, unusual replies including 6...c5 and 6...Bg4.} 8. d5 {[%emt 0:08:37]} (8. O-O {with more complications.} Ng4 9. Bg5 cxd4 10. Nxd4 Nc5 11. Rb1) 8... e6 {[%emt 0:01:38]} 9. Nd2 {[%emt 0:03:11]} exd5 {[%emt 0:03:40] White is slightly better.} 10. cxd5 {[%emt 0:00:11]} Nc7 {[%emt 0:00:41][%cal Ob7b5]} 11. a4 {[%emt 0:00:47] Prevents b5.} b6 {[%emt 0:01:39]} 12. O-O {[%emt 0:01:23] [#]} Rb8 $146 {[%emt 0:01:38]} ({Predecessor:} 12... Re8 13. h3 Rb8 14. Qc2 Ba6 15. Bxa6 Nxa6 16. Nc4 Nb4 17. Qb1 a6 18. Bf4 Bf8 {1-0 (53) Hjartarson,J (2519)-Thorhallsson,S (2199) Reykjavik 2021}) 13. Bf4 {[%emt 0:15:17]} Re8 {[%emt 0:13:38]} 14. Re1 {[%emt 0:01:45]} a6 {[%emt 0:03:17]} 15. Bf3 {[%emt 0:01:19]} b5 $1 {[%emt 0:04:21] Inhibits Nc4.} 16. axb5 {[%emt 0:00:31]} axb5 {[%emt 0:00:25]} 17. e5 {[%emt 0:15:33]} dxe5 {[%emt 0:09:34]} 18. Rxe5 {[%emt 0:00:57]} (18. Bxe5 {looks sharper.} Bb7 19. Nb3 b4 20. Na4) 18... Rxe5 {[%emt 0:03:11]} 19. Bxe5 {[%emt 0:00:24]} Nfxd5 {[%emt 0:04:59]} 20. Bxg7 {[%emt 0:00:56]} Kxg7 {[%emt 0:00:06]} 21. Nxd5 {[%emt 0:03:04]} Nxd5 {[%emt 0:00:11][%cal Bc7d5,Bd5f4,Bf4h3][%mdl 32]} 22. Nb3 {[%emt 0:02:06][%csl LRc5,LRd5]} Be6 {[%emt 0:01:35]} 23. Nxc5 {[%emt 0:00:24]} Nf4 {[%emt 0:03:02]} 24. g3 {[%emt 0:04:19]} Nh3+ {[%emt 0:01:43]} 25. Kg2 {[%emt 0:00:16]} Ng5 {[%emt 0:00:32]} 26. h4 {[%emt 0:10:01]} Bh3+ {[%emt 0:15:44]} 27. Kh2 {[%emt 0:00:12]} Nxf3+ {[%emt 0:00:09]} 28. Qxf3 {[%emt 0:00:25]} Bf5 {[%emt 0:00:05]} 29. Qf4 {[%emt 0:01:27][%cal Oh4h5] Prevents Qd4.} Rc8 {[%emt 0:02:04]} 30. b4 {[%emt 0:01:19][%cal Oh4h5]} h5 {[%emt 0:00:49]} 31. Ra6 {[%emt 0:06:24]} Qd5 {[%emt 0:07:40]} 32. Rd6 {[%emt 0:00:22]} Qc4 {[%emt 0:00:38]} 33. Qd4+ {[%emt 0:05:17]} Qxd4 {[%emt 0:03:43]} 34. Rxd4 $11 {[%emt 0:00:04][%mdl 4096] Endgame KRB-KRN} Ra8 {[%emt 0:01:07]} 35. Kg2 {[%emt 0:04:56]} Ra2 {[%emt 0:00:41]} 36. Kf3 {[%emt 0:00:43]} Bg4+ {[%emt 0:01:25]} 37. Kg2 {[%emt 0:00:05]} Rb2 {[%emt 0:08:23]} 38. Rf4 {[%emt 0:01:01]} Be2 $1 {[%emt 0:00:00]} 39. Na6 {[%emt 0:02:46]} Rb1 {[%emt 0:00:00]} (39... f6 $15) 40. f3 {[%emt 0:03:02]} Rb2 {[%emt 0:00:35]} 41. Kf2 {[%emt 0:30:34]} Bd1+ {[%emt 0:19:11]} 42. Ke1 {[%emt 0:00:00]} Bb3 {[%emt 0:01:05]} 43. g4 {[%emt 0:00:00]} Bc4 {[%emt 0:02:56]} 44. gxh5 {[%emt 0:00:00]} gxh5 {[%emt 0:00:02]} 45. Rf5 {[%emt 0:00:00]} Kg6 {[%emt 0:00:45]} 46. Rg5+ {[%emt 0:00:00]} Kh6 {[%emt 0:00:05] aiming for ...Re2+.} 47. Rf5 {[%emt 0:00:00]} Kg6 {[%emt 0:00:43]} 48. Rg5+ {[%emt 0:00:00]} Kh6 {[%emt 0:00:07]} 49. Rf5 $1 {[%emt 0:00:00]} Rh2 {[%emt 0:01:49]} 50. Rf4 {[%emt 0:00:00]} Kg6 {[%emt 0:01:38]} 51. Nb8 {[%emt 0:00:00]} Re2+ {[%emt 0:01:34] White is now going downhill.} 52. Kd1 {[%emt 0:00:00][%cal Of4c4] [#]} Re6 $1 {[%emt 0:00:43] Black is more active.} 53. Rd4 {[%emt 0:00:00]} (53. Kc2 $142) 53... Be2+ $17 {[%emt 0:01:59]} 54. Kd2 {[%emt 0:00:00]} (54. Ke1 $17 {is a better defense.}) 54... Bxf3 $19 {[%emt 0:00:07]} 55. Nd7 {[%emt 0:00:00] Hoping for Nf8+.} Kf5 {[%emt 0:00:40]} 56. Nc5 {[%emt 0:00:00]} Re2+ {[%emt 0:00:49]} 57. Kc3 {[%emt 0:00:00]} Re3+ {[%emt 0:00:36]} 58. Kd2 {[%emt 0:00:00]} Re7 {[%emt 0:00:27]} 59. Nd3 {[%emt 0:00:37]} Be4 {[%emt 0:00:49]} 60. Nc5 {[%emt 0:01:20] [#]} Kf4 $1 {[%emt 0:01:25]} 61. Nd7 $2 {[%emt 0:01:07]} (61. Ke2 {is a better chance.}) 61... f5 {[%emt 0:00:42]} 62. Rd6 {[%emt 0:02:55]} Kg3 {[%emt 0:01:23]} 63. Nf6 {[%emt 0:00:13]} Kxh4 {[%emt 0:00:34] ...Kg5 is the strong threat.} 64. Ke3 {[%emt 0:00:08]} Kg5 {[%emt 0:00:39]} 65. Kf2 {[%emt 0:01:32]} h4 {[%emt 0:00:27]} 66. Rb6 {[%emt 0:00:32]} Bd3 {[%emt 0:00:39] White must now prevent ...h3.} 67. Nd5 {[%emt 0:00:24]} Re2+ {[%emt 0:00:51]} 68. Kf3 {[%emt 0:00:18]} Re5 {[%emt 0:00:20]} 69. Nf6 {[%emt 0:00:45]} Be2+ {[%emt 0:00:22]} 70. Kf2 {[%emt 0:00:40]} Bc4 {[%emt 0:00:14]} 71. Nh7+ {[%emt 0:02:23]} Kf4 {[%emt 0:00:29]} 72. Rh6 {[%emt 0:00:09]} Re2+ {[%emt 0:00:12]} 73. Kg1 {[%emt 0:00:00]} Rb2 {[%emt 0:00:41]} 74. Rh5 {[%emt 0:00:45]} Rxb4 {[%emt 0:00:31]} 75. Nf6 {[%emt 0:00:02]} Rb1+ {[%emt 0:01:06]} 76. Kf2 {[%emt 0:00:32]} Rb2+ {[%emt 0:00:03]} 77. Ke1 {[%emt 0:01:35]} Ke3 {[%emt 0:00:14][%cal Rb2b1] Black mates.} 78. Kd1 {[%emt 0:00:27]} Be2+ {[%emt 0:00:13]} 79. Kc1 {[%emt 0:00:09]} Bxh5 {[%emt 0:00:07] Weighted Error Value: White=0.12 (very precise) /Black=0.06 (flawless)} 0-1

[Event "Frauenbundesliga 2021-22"]
[Site "Germany"]
[Date "2022.05.26"]
[Round "3.21"]
[White "Gaal, Zsoka"]
[Black "Batsiashvili, Nino"]
[Result "1-0"]
[ECO "E05"]
[WhiteElo "2323"]
[BlackElo "2463"]
[Annotator "TA"]
[PlyCount "113"]
[EventDate "2021.11.26"]
[EventType "team-tourn"]
[EventCountry "GER"]
[SourceTitle "playchess.com"]
[Source "ChessBase"]
[SourceQuality "1"]
[WhiteTeam "Hamburger SK"]
[BlackTeam "Schwaebisch Hall"]
[TimeControl "40/5400+30:1800+30"]

{[%evp 13,113,4,14,14,14,14,14,14,12,13,49,47,49,-11,76,87,177,189,192,183,181,152,163,158,163,162,227,170,262,272,302,285,291,187,200,194,187,175,267,279,364,346,406,331,384,362,493,478,473,469,475,451,446,439,592,551,745,729,691,561,561,568,568,552,1351,1170,29966,29967,29968,29968,29964,29962,12605,11069,29970,29971,29970,29970,29966,29967,29966,29969,29972,29973,29975,29976,29981,29982,29982,29983,29982,29979,29978,29980,29980,29981,29981,29982,29982,29983,29983,29983]} 1. Nf3 {[%emt 0:00:07]} d5 {[%emt 0:00:06]} 2. g3 {[%emt 0:00:10]} Nf6 {[%emt 0:00:29]} 3. Bg2 {[%emt 0:00:09]} e6 {[%emt 0:00:10]} 4. d4 {[%emt 0:00:12]} Be7 {[%emt 0:00:07]} 5. O-O {[%emt 0:00:19]} O-O {[%emt 0:00:04]} 6. c4 {[%emt 0:00:14]} dxc4 {[%emt 0:00:06]} 7. Qc2 {[%emt 0:00:28]} b5 {[%emt 0:00:14]} 8. a4 {[%emt 0:00:09] E05: Open Catalan: 5 Nf3 Be7.} b4 {[%emt 0:00:23]} 9. Nfd2 {[%emt 0:01:39]} Nd5 {[%emt 0:00:20] is more profitable than 9...c6 at the moment.} 10. Nxc4 {[%emt 0:03:01] The position is equal.} c5 {[%emt 0:00:37]} 11. dxc5 {[%emt 0:11:48]} Bxc5 {[%emt 0:00:20]} 12. e4 {[%emt 0:00:44]} Nb6 {[%emt 0:01:55]} 13. Ne3 {[%emt 0:01:37] [#]} ({Better is} 13. Ncd2 $14 Na6 14. Nb3) 13... Bxe3 $146 {[%emt 0:11:21]} (13... Na6 $11) ({Predecessor:} 13... Na6 14. a5 Nd7 15. Rd1 Qe7 16. Nc4 Bb7 17. e5 Bxg2 18. Kxg2 f6 19. Nbd2 Nxe5 {0-1 (30) Dardha,D (2533)-Kollars,D (2622) Sitges 2021}) 14. Bxe3 $16 {[%emt 0:00:12] a5 is the strong threat. Black is on the road to losing.} (14. fxe3 a5 15. b3 N8d7 $17) 14... Bb7 {[%emt 0:00:07]} (14... Ba6 $16) 15. a5 $18 {[%emt 0:09:11]} N6d7 {[%emt 0:00:08]} 16. Rd1 {[%emt 0:04:45]} Qc8 {[%emt 0:26:10]} 17. Qa4 {[%emt 0:12:19]} Nc5 {[%emt 0:11:33]} 18. Qxb4 {[%emt 0:14:10]} Nba6 {[%emt 0:00:19]} 19. Qb5 {[%emt 0:03:51]} Rb8 {[%emt 0:14:53]} (19... Bxe4 $142 20. Bxe4 Nxe4) 20. Qe2 {[%emt 0:02:22] Hoping for Rc1.} Bc6 {[%emt 0:02:46]} (20... Nb4 {was necessary.} 21. Rc1 Nbd3) 21. Nc3 {[%emt 0:04:44]} Qb7 {[%emt 0:06:49]} 22. Bf4 {[%emt 0:09:18]} Rbc8 {[%emt 0:00:33]} 23. Rab1 {[%emt 0:02:09][%cal Ba1b1,Bb1d1,Bd1d6][%mdl 32] And now Bf1 would win.} Nb3 {[%emt 0:02:13]} 24. Bf1 {[%emt 0:01:28]} Nac5 {[%emt 0:04:11]} 25. a6 $36 {[%emt 0:01:02][%mdl 2048] White is really pushing.} Qb6 {[%emt 0:01:02]} (25... Qb4 $142 26. Qc4 Qxc4 27. Bxc4 Na5) 26. Rd6 {[%emt 0:01:49]} Rfd8 {[%emt 0:05:26]} 27. Rbd1 {[%emt 0:00:12]} Rxd6 {[%emt 0:11:38]} 28. Rxd6 {[%emt 0:00:17]} (28. Bxd6 Rd8 29. Qe3 Nd7 $16) 28... Qb4 {[%emt 0:00:00]} 29. Qd1 {[%emt 0:01:50] Threatening mate with Rd8+.} h6 {[%emt 0:00:00]} 30. Rd8+ {[%emt 0:01:19]} Rxd8 {[%emt 0:00:00]} 31. Qxd8+ {[%emt 0:00:12]} Kh7 {[%emt 0:00:00]} 32. Qb8 {[%emt 0:04:54]} Qa5 {[%emt 0:00:25]} 33. Qxa7 {[%emt 0:02:40]} Nd4 {[%emt 0:00:47]} 34. Qxf7 {[%emt 0:06:13] Strongly threatening Be5.} Nxe4 {[%emt 0:01:06] [#]} 35. Bxh6 $1 {[%emt 0:01:45][%csl Gh6][%cal Rf7g7][%mdl 512]} Qe5 {[%emt 0:01:06] [#]} 36. Bxg7 $1 {[%emt 0:00:30]} Qxg7 {[%emt 0:00:10]} 37. Qxg7+ {[%emt 0:00:34]} Kxg7 {[%emt 0:00:01]} 38. Bg2 {[%emt 0:00:31] Inhibits Nf3+.} Nxc3 {[%emt 0:00:21]} 39. bxc3 {[%emt 0:00:30]} Nf3+ {[%emt 0:00:51]} 40. Bxf3 {[%emt 0:00:27]} Bxf3 {[%emt 0:00:02] KB-KP} 41. Kf1 {[%emt 0:01:35]} Kf6 {[%emt 0:09:25]} 42. Ke1 {[%emt 0:00:30]} Kf5 {[%emt 0:02:18]} 43. Kd2 {[%emt 0:01:43] Ke3 would kill now.} e5 {[%emt 0:00:22]} 44. Ke3 {[%emt 0:06:44] White mates.} Bc6 {[%emt 0:00:09]} 45. h3 {[%emt 0:01:09]} Ba8 {[%emt 0:00:23]} 46. a7 {[%emt 0:02:16]} Bc6 {[%emt 0:00:20]} 47. Kd3 {[%emt 0:02:47]} Bd5 {[%emt 0:01:05]} 48. c4 {[%emt 0:00:27]} Bc6 {[%emt 0:00:02]} 49. c5 {[%emt 0:01:31]} Be4+ {[%emt 0:04:03]} 50. Kc4 {[%emt 0:00:45]} Bc6 {[%emt 0:00:52]} 51. Kb4 {[%emt 0:01:14]} Ke4 {[%emt 0:00:14]} 52. h4 {[%emt 0:00:24]} Kf3 {[%emt 0:00:08]} 53. h5 {[%emt 0:00:34]} Kxf2 {[%emt 0:00:23]} 54. h6 {[%emt 0:00:06]} e4 {[%emt 0:00:04]} 55. h7 {[%emt 0:00:07]} e3 {[%emt 0:00:07]} 56. h8=Q {[%emt 0:00:07]} e2 {[%emt 0:00:01]} 57. Qe5 {[%emt 0:00:38] Weighted Error Value: White=0.11 (very precise) /Black=0.45} 1-0

[Event "Frauenbundesliga 2021-22"]
[Site "Germany"]
[Date "2022.05.26"]
[Round "3.22"]
[White "Javakhishvili, Lela"]
[Black "Roebers, Eline"]
[Result "1-0"]
[ECO "A48"]
[WhiteElo "2480"]
[BlackElo "2369"]
[Annotator "TA"]
[PlyCount "61"]
[EventDate "2021.11.26"]
[EventType "team-tourn"]
[EventCountry "GER"]
[SourceTitle "playchess.com"]
[Source "ChessBase"]
[SourceQuality "1"]
[WhiteTeam "Schwaebisch Hall"]
[BlackTeam "Hamburger SK"]
[TimeControl "40/5400+30:1800+30"]

{[%evp 10,61,16,0,76,-2,22,-1,0,-51,-51,-48,-21,-16,-15,-75,-75,-76,-69,-62,-62,-152,0,0,0,-17,0,-1,74,62,264,262,262,263,374,382,655,535,570,556,550,538,728,630,663,640,622,519,834,700,694,688,2156,1932]} 1. d4 {[%emt 0:00:03]} Nf6 {[%emt 0:00:16]} 2. Nf3 {[%emt 0:00:21]} g6 {[%emt 0:00:05]} 3. Bg5 {[%emt 0:00:12]} Bg7 {[%emt 0:00:04]} 4. Nbd2 {[%emt 0:00:14]} O-O {[%emt 0:00:16]} 5. c3 {[%emt 0:01:01]} d6 {[%emt 0:08:59]} 6. e4 {[%emt 0:00:18]} e5 {[%emt 0:05:47] [#] A48: 1 d4 Nf6 2 Nf3 g6: Torre, London and Colle Systems.} (6... c5 $11 {remains equal.}) 7. Bd3 {[%emt 0:02:07]} ({Much weaker is} 7. dxe5 dxe5 8. Nxe5 Re8 $11) (7. Nxe5 $1 $16 dxe5 (7... Re8 8. Bxf6) 8. dxe5) 7... exd4 {[%emt 0:08:26]} 8. cxd4 {[%emt 0:00:36] [#]} h6 $146 {[%emt 0:00:14] The position is equal.} ({Predecessor:} 8... c5 9. O-O Nc6 10. d5 Nb4 11. Nc4 Bg4 12. a3 Nxd3 13. Qxd3 b5 14. Ncd2 c4 {0-1 (73) Nasir,Z (2057)-Nozdrachev,L (2372) Chess.com INT 2021}) 9. Bh4 {[%emt 0:00:17]} ({White should play} 9. Be3 $11) 9... Nc6 {[%emt 0:00:40]} 10. h3 {[%emt 0:04:20]} Qe8 {[%emt 0:16:23][%cal Of6e4]} 11. O-O {[%emt 0:00:56]} Nh5 {[%emt 0:01:19]} 12. Rc1 {[%emt 0:17:33] [#]} (12. Bb5 $11) 12... g5 $1 $17 {[%emt 0:10:06] Hoping for ...Nf4.} 13. Bg3 {[%emt 0:19:59]} Nxg3 {[%emt 0:03:37]} 14. fxg3 {[%emt 0:00:02]} Nxd4 {[%emt 0:06:26]} 15. Rxc7 {[%emt 0:01:02] [#]} (15. Nc4 $15) 15... Ne6 $2 {[%emt 0:05:36]} (15... Nc6 $1 $17 {aiming for ...Qd8.} 16. Nc4 Qd8 17. Rxc8 Rxc8) 16. Rc2 $11 {[%emt 0:00:56]} Nc5 {[%emt 0:08:05]} 17. Nc4 {[%emt 0:06:26]} Qe6 {[%emt 0:06:50]} 18. Re1 {[%emt 0:07:45]} Kh8 {[%emt 0:07:02]} (18... Bd7 $11 {keeps the balance.}) 19. b4 $16 {[%emt 0:02:03]} Na4 {[%emt 0:02:24] A mistake that costs the game.} (19... Nd7 $14) 20. e5 $18 {[%emt 0:04:38]} dxe5 {[%emt 0:00:47]} 21. Ncxe5 {[%emt 0:00:13][%cal Of3g5] And now Nxg5! would win.} ({Weaker is} 21. Nfxe5 b5 $16) 21... Qb6+ {[%emt 0:02:32]} (21... Qd6 {is a better defense.} 22. Rxc8 Raxc8) 22. Kh2 {[%emt 0:00:37][%cal Of3g5] Nxg5! is the strong threat.} g4 {[%emt 0:02:16]} (22... Qd6 23. Rxc8 Raxc8) 23. hxg4 {[%emt 0:03:01][%cal Bh3g4,Bg4g5,Bg5h6][%mdl 32] White is clearly winning.} Be6 {[%emt 0:01:04]} 24. g5 {[%emt 0:03:04]} Bd5 {[%emt 0:01:32]} 25. Nd7 {[%emt 0:03:00][%csl LRb6,LRf8] Pair of Knights!} Qxb4 {[%emt 0:00:43]} 26. Nxf8 {[%emt 0:00:52]} Rxf8 {[%emt 0:00:50]} 27. gxh6 {[%emt 0:00:13]} Bc3 {[%emt 0:00:46]} 28. Rf1 {[%emt 0:04:40]} Qg4 {[%emt 0:00:51]} (28... Nb2 $142) 29. Bb5 {[%emt 0:05:53]} Qh5+ {[%emt 0:00:30]} 30. Nh4 {[%emt 0:00:28]} Qg5 {[%emt 0:00:32]} 31. Rf5 {[%emt 0:01:02] Weighted Error Value: White=0.39/Black=0.58} 1-0

[Event "Frauenbundesliga 2021-22"]
[Site "Germany"]
[Date "2022.05.26"]
[Round "3.23"]
[White "Papp, Sarah"]
[Black "Arabidze, Meri"]
[Result "0-1"]
[ECO "B49"]
[WhiteElo "2305"]
[BlackElo "2436"]
[Annotator "TA"]
[PlyCount "90"]
[EventDate "2021.11.26"]
[EventType "team-tourn"]
[EventCountry "GER"]
[SourceTitle "playchess.com"]
[Source "ChessBase"]
[SourceQuality "1"]
[WhiteTeam "Hamburger SK"]
[BlackTeam "Schwaebisch Hall"]
[TimeControl "40/5400+30:1800+30"]

{[%evp 19,90,0,0,0,0,0,0,0,0,0,10,0,0,0,0,0,-6,-10,-6,-52,-52,-92,-21,-104,0,0,0,0,0,0,-10,-157,-166,-145,-26,-60,-64,-164,-166,-169,-163,-158,-178,-173,-176,-166,-158,-168,-155,-162,-156,-162,-178,-562,-547,-585,-581,-562,-575,-548,-509,-502,-467,-504,-512,-512,-512,-492,-481,-1537,-1035,-4694,-4614]} 1. e4 {[%emt 0:00:03]} c5 {[%emt 0:00:07]} 2. Nf3 {[%emt 0:00:04]} e6 {[%emt 0:00:04]} 3. d4 {[%emt 0:00:04]} cxd4 {[%emt 0:00:04]} 4. Nxd4 {[%emt 0:00:04]} Nc6 {[%emt 0:00:06]} 5. Nc3 {[%emt 0:00:15]} Qc7 {[%emt 0:00:06]} 6. Be3 {[%emt 0:00:38]} a6 {[%emt 0:00:17]} 7. Be2 {[%emt 0:00:42]} Nf6 {[%emt 0:03:42]} 8. O-O {[%emt 0:00:30]} Bb4 {[%emt 0:00:14]} 9. Na4 {[%emt 0:01:04]} Be7 {[%emt 0:00:14] 9...Be7 scores better than 9...0-0.} 10. c4 {[%emt 0:00:41]} Nxe4 {[%emt 0:00:40]} 11. Bf3 {[%emt 0:01:35] B49: Sicilian: Taimanov: 5 Nc3 Qc7 6 Be3 a6 7 Be2.} Ng5 {[%emt 0:13:41]} 12. Be2 {[%emt 0:13:11]} O-O {[%emt 0:08:03]} 13. c5 {[%emt 0:02:29] [#] The position is equal.} Rb8 $146 {[%emt 0:15:26]} ({Predecessor:} 13... Ne4 14. Rc1 Rd8 15. Bf3 Ng5 16. Be2 Ne4 17. g3 Nf6 18. Bf3 g6 19. Nb6 Rb8 20. Qa4 e5 21. Nb3 d5 22. cxd6 Rxd6 23. Na5 Bd7 24. Nxd7 Rxd7 25. Bxc6 bxc6 26. Bc5 {½-½ (26) Kobalia,M (2495)-Leitao,R (2475) Menorca 1996}) 14. Rc1 {[%emt 0:04:16]} f5 {[%emt 0:07:57]} 15. f3 {[%emt 0:03:17]} f4 {[%emt 0:03:52]} 16. Bf2 {[%emt 0:01:00]} e5 {[%emt 0:01:11]} 17. Nb3 {[%emt 0:09:18]} d5 {[%emt 0:07:15]} 18. cxd6 {[%emt 0:02:23]} Bxd6 {[%emt 0:01:19]} 19. Bb6 {[%emt 0:08:14]} (19. h4 $11 {deserves consideration.} Nf7 20. Bc4) 19... Qe7 $15 {[%emt 0:02:49]} 20. Nac5 {[%emt 0:06:25]} Kh8 {[%emt 0:04:00]} ({Black should try} 20... Rf6 $1 $17) 21. Qd5 {[%emt 0:08:27]} (21. Bd3 $1 $11 {was the only way to keep the balance.}) 21... Bc7 {[%emt 0:06:39]} (21... Rf6 $17 {And now ...Bf5 would win.} 22. Rfd1 (22. Bc4 Bf5 $17) 22... Rg6) 22. Bxc7 $11 {[%emt 0:02:10]} Qxc7 {[%emt 0:00:05]} 23. Nxa6 {[%emt 0:00:35]} Qb6+ {[%emt 0:01:54]} 24. Kh1 {[%emt 0:07:50]} Ra8 {[%emt 0:07:32]} 25. h4 {[%emt 0:09:20]} (25. Qc5 $1 $11 {keeps the balance.} Qxc5 26. Naxc5) 25... Nf7 $1 $17 {[%emt 0:02:57][%cal Bg5f7,Bf7d8,Bd8e6][%mdl 32]} 26. Qc5 {[%emt 0:03:31] [#]} Qxc5 {[%emt 0:00:48]} (26... Qd8 $1 $17 27. Kg1 Bf5) 27. Rxc5 {[%emt 0:00:24][%cal Oe2b5]} Nfd8 {[%emt 0:04:25]} 28. Bb5 {[%emt 0:07:24] [#] Black converts the advantage convincingly.} ({Better is} 28. Nc7 $1 $15 Rxa2 29. Rc2) 28... Ne6 $1 $19 {[%emt 0:00:38]} ({Stronger than} 28... Rxa6 29. Bxa6 bxa6 30. Na5 $11) 29. Rd5 {[%emt 0:04:45]} Ne7 $36 {[%emt 0:01:25][%cal Bc6e7,Be7g6,Bg6h4,Bh4f5,Bf5e3,Be3c4][%mdl 2080] Keeping White busy.} ({Worse is} 29... Rxa6 30. Bxa6 bxa6 31. Rc1 $11) 30. Rxe5 {[%emt 0:00:19]} bxa6 {[%emt 0:00:22]} 31. Bc4 {[%emt 0:00:22]} Ng6 {[%emt 0:01:26][%csl LRe5,LRh4]} 32. Re4 {[%emt 0:01:13]} Nc7 {[%emt 0:01:51]} 33. h5 {[%emt 0:00:22]} Nh4 {[%emt 0:00:03] Threatens to win with ...Nf5.} 34. Rd1 {[%emt 0:01:47][%cal Oe4f4]} Nf5 {[%emt 0:03:07] Strongly threatening ...Ng3+.} 35. Kh2 {[%emt 0:00:50]} Ne3 {[%emt 0:02:20]} 36. Rxf4 $2 {[%emt 0:01:16]} (36. Rdd4 {was the crucial defense.}) 36... Be6 {[%emt 0:00:18] Black is clearly winning.} 37. Rxf8+ {[%emt 0:01:22]} Rxf8 {[%emt 0:00:01]} 38. Rc1 {[%emt 0:00:18]} Nxc4 {[%emt 0:01:02]} 39. Nd4 {[%emt 0:00:10]} Bf7 {[%emt 0:01:19] ...Nb5 is the strong threat.} 40. b3 {[%emt 0:00:18]} Nb5 {[%emt 0:00:11]} 41. Nxb5 {[%emt 0:02:41]} axb5 {[%emt 0:00:11][%cal Ba6b5,Bb5c4,Bc4c3][%mdl 32]} 42. bxc4 {[%emt 0:00:03]} bxc4 {[%emt 0:00:10]} 43. Kg3 {[%emt 0:01:04]} Rc8 {[%emt 0:01:18] White must now prevent ...c3.} 44. Kh4 {[%emt 0:01:28]} (44. Rc3 $142) 44... c3 {[%emt 0:00:45]} 45. Rc2 {[%emt 0:00:15] [#]} Bxa2 $1 {[%emt 0:00:56][%mdl 512] Weighted Error Value: White=0.58/Black=0.13 (very precise)} 0-1

[Event "Frauenbundesliga 2021-22"]
[Site "Germany"]
[Date "2022.05.26"]
[Round "3.24"]
[White "Bulmaga, Irina"]
[Black "Genova, Lyubka"]
[Result "1/2-1/2"]
[ECO "B47"]
[WhiteElo "2397"]
[BlackElo "2225"]
[Annotator "TA"]
[PlyCount "54"]
[EventDate "2021.11.26"]
[EventType "team-tourn"]
[EventCountry "GER"]
[SourceTitle "playchess.com"]
[Source "ChessBase"]
[SourceQuality "1"]
[WhiteTeam "Schwaebisch Hall"]
[BlackTeam "Hamburger SK"]
[TimeControl "40/5400+30:1800+30"]

{[%evp 9,54,25,50,13,72,63,74,54,68,31,51,49,74,60,49,9,24,-5,-10,-34,-39,-29,-23,-34,-35,-58,-37,-35,-39,-57,-48,-55,-67,-66,-42,-42,-42,-42,-42,-46,-58,-63,-49,-45,-31,-40,-30]} 1. e4 {[%emt 0:00:05]} c5 {[%emt 0:00:08]} 2. Nf3 {[%emt 0:00:06]} e6 {[%emt 0:00:07]} 3. d4 {[%emt 0:00:06]} cxd4 {[%emt 0:00:06]} 4. Nxd4 {[%emt 0:00:06]} Nc6 {[%emt 0:00:05]} 5. Nc3 {[%emt 0:00:09]} Qc7 {[%emt 0:00:10]} 6. g4 {[%emt 0:00:15] [#] B47: Sicilian: Taimanov: 5 Nc3 Qc7 6 f4, 6 g3 and 6 Be2.} d6 $146 {[%emt 0:22:04]} (6... a6 $11 {remains equal.}) ({Predecessor:} 6... h6 7. Be3 Nf6 8. f3 a6 9. Qd2 Ne5 10. f4 Nc4 11. Bxc4 Qxc4 12. e5 Nxg4 13. Rg1 Nxe3 14. Qxe3 {0-1 (31) Grandelius,N (2672)-Rapport,R (2763) Wijk aan Zee 2022}) 7. Be3 {[%emt 0:00:56]} Bd7 {[%emt 0:04:16]} 8. Rg1 {[%emt 0:08:57] White is more active. White is better.} a6 {[%emt 0:06:39]} 9. Qd2 {[%emt 0:04:28]} Rc8 {[%emt 0:08:48]} 10. O-O-O $1 {[%emt 0:04:21]} Nxd4 {[%emt 0:10:19]} 11. Bxd4 {[%emt 0:04:33]} b5 {[%emt 0:00:19]} 12. a3 {[%emt 0:00:22]} Ne7 {[%emt 0:43:29]} 13. f4 {[%emt 0:17:56]} Nc6 $1 {[%emt 0:00:00]} 14. Qf2 {[%emt 0:18:33]} Nxd4 {[%emt 0:00:00]} 15. Qxd4 {[%emt 0:01:37]} Qc5 {[%emt 0:00:00]} 16. Qxc5 {[%emt 0:11:05]} Rxc5 {[%emt 0:00:00] Black is slightly better.} 17. Rg3 {[%emt 0:02:55][%cal Oe4e5]} Be7 {[%emt 0:00:00]} 18. Rh3 {[%emt 0:00:57]} O-O {[%emt 0:00:00]} 19. e5 {[%emt 0:00:56]} d5 {[%emt 0:00:00]} 20. Bd3 {[%emt 0:01:16]} g6 $1 {[%emt 0:00:00]} 21. g5 {[%emt 0:02:30] Inhibits f6.} a5 {[%emt 0:00:00]} 22. Ne2 {[%emt 0:03:51]} b4 {[%emt 0:00:00]} 23. axb4 {[%emt 0:00:30]} axb4 {[%emt 0:00:00]} 24. Nd4 {[%emt 0:00:55]} Ra8 {[%emt 0:00:00]} 25. Nb3 {[%emt 0:01:25]} Rc7 {[%emt 0:00:00]} 26. Kd2 {[%emt 0:01:35]} Ra2 {[%emt 0:00:00]} 27. Rb1 {[%emt 0:00:22]} Kg7 {[%emt 0:00:00] Weighted Error Value: White=0.12 (very precise) /Black=0.14 (very precise)} 1/2-1/2